[Event "Titled Tuesday Blitz June 27 Late 2023"]
[White "Leitao, Rafael"]
[Black "Andreikin, Dmitry"]
[WhiteFideId "2101246"]
[BlackFideId "4158814"]
[WhiteElo "2790"]
[BlackElo "3018"]
[Result "1-0"]
[Round "7"]
[TimeControl "180+2"]
[Date "2023.06.27"]
[WhiteClock "0:00:05"]
[BlackClock "0:00:14"]
[Board "17"]

1. c4 {[%clk 0:03:00]}  e5 {[%clk 0:02:58]} 2. Nc3 {[%clk 0:02:58]}  d6 {[%clk 0:02:56]} 3. Nf3 {[%clk 0:02:57]}  f5 {[%clk 0:02:56]} 4. d4 {[%clk 0:02:57]}  e4 {[%clk 0:02:55]} 5. Ng5 {[%clk 0:02:52]}  c6 {[%clk 0:02:55]} 6. Nh3 {[%clk 0:02:50]}  Be7 {[%clk 0:02:49]} 7. Nf4 {[%clk 0:02:48]}  Nf6 {[%clk 0:02:47]} 8. e3 {[%clk 0:02:46]}  Na6 {[%clk 0:02:46]} 9. b3 {[%clk 0:02:45]}  O-O {[%clk 0:02:45]} 10. Bb2 {[%clk 0:02:44]}  Nc7 {[%clk 0:02:41]} 11. Be2 {[%clk 0:02:39]}  d5 {[%clk 0:02:41]} 12. h4 {[%clk 0:02:30]}  Ne6 {[%clk 0:02:35]} 13. Nh3 {[%clk 0:01:44]}  a6 {[%clk 0:02:30]} 14. Qc2 {[%clk 0:01:38]}  b5 {[%clk 0:02:29]} 15. c5 {[%clk 0:01:33]}  Bd7 {[%clk 0:02:28]} 16. O-O-O {[%clk 0:01:25]}  a5 {[%clk 0:02:23]} 17. f3 {[%clk 0:01:23]}  a4 {[%clk 0:02:22]} 18. b4 {[%clk 0:01:23]}  a3 {[%clk 0:02:21]} 19. Ba1 {[%clk 0:01:23]}  exf3 {[%clk 0:02:20]} 20. gxf3 {[%clk 0:01:22]}  Nh5 {[%clk 0:02:19]} 21. Bd3 {[%clk 0:01:20]}  Kh8 {[%clk 0:02:16]} 22. Rdg1 {[%clk 0:01:17]}  f4 {[%clk 0:02:15]} 23. Bxh7 {[%clk 0:01:10]}  fxe3 {[%clk 0:02:15]} 24. Ne2 {[%clk 0:01:09]}  Rxf3 {[%clk 0:02:02]} 25. Ng5 {[%clk 0:01:04]}  Rf2 {[%clk 0:02:00]} 26. Bg6 {[%clk 0:00:57]}  Nef4 {[%clk 0:01:23]} 27. Nf7+ {[%clk 0:00:50]}  Kg8 {[%clk 0:01:23]} 28. Nxd8 {[%clk 0:00:43]}  Nxe2+ {[%clk 0:01:23]} 29. Kb1 {[%clk 0:00:41]}  Nxg1 {[%clk 0:01:23]} 30. Bh7+ {[%clk 0:00:33]}  Kf8 {[%clk 0:01:16]} 31. Qg6 {[%clk 0:00:33]}  Bf5+ {[%clk 0:00:49]} 32. Qxf5+ {[%clk 0:00:33]}  Rxf5 {[%clk 0:00:49]} 33. Bxf5 {[%clk 0:00:33]}  Rxd8 {[%clk 0:00:43]} 34. Rxg1 {[%clk 0:00:32]}  Bxh4 {[%clk 0:00:43]} 35. Bg4 {[%clk 0:00:30]}  Bf2 {[%clk 0:00:41]} 36. Rh1 {[%clk 0:00:27]}  Ng3 {[%clk 0:00:40]} 37. Rh2 {[%clk 0:00:14]}  Ke7 {[%clk 0:00:34]} 38. Kc2 {[%clk 0:00:14]}  Kf6 {[%clk 0:00:31]} 39. Bc3 {[%clk 0:00:14]}  Ne4 {[%clk 0:00:29]} 40. Bf3 {[%clk 0:00:11]}  Kf5 {[%clk 0:00:26]} 41. Rg2 {[%clk 0:00:09]}  g5 {[%clk 0:00:26]} 42. Bg4+ {[%clk 0:00:09]}  Kf4 {[%clk 0:00:25]} 43. Be2 {[%clk 0:00:08]}  Ng3 {[%clk 0:00:24]} 44. Kd3 {[%clk 0:00:08]}  Rh8 {[%clk 0:00:21]} 45. Bd2 {[%clk 0:00:05]}  Rh1 {[%clk 0:00:14]} 46. Rxf2# {[%clk 0:00:05]} 1-0


[Site "https://www.chess.com"]

[Event "Titled Tuesday Blitz June 27 Late 2023"]
[White "Milikow, Yoav"]
[Black "Hakobyan, Aram"]
[WhiteFideId "2822237"]
[BlackFideId "13306677"]
[WhiteElo "2782"]
[BlackElo "3017"]
[Result "0-1"]
[Round "7"]
[TimeControl "180+2"]
[Date "2023.06.27"]
[WhiteClock "0:00:03"]
[BlackClock "0:01:05"]
[Board "18"]

1. d4 {[%clk 0:03:00]}  g6 {[%clk 0:03:00]} 2. c4 {[%clk 0:02:59]}  Bg7 {[%clk 0:03:01]} 3. Nc3 {[%clk 0:03:00]}  c5 {[%clk 0:03:00]} 4. d5 {[%clk 0:03:00]}  d6 {[%clk 0:03:01]} 5. e4 {[%clk 0:03:00]}  Bxc3+ {[%clk 0:03:01]} 6. bxc3 {[%clk 0:03:01]}  e5 {[%clk 0:03:02]} 7. h4 {[%clk 0:02:57]}  h6 {[%clk 0:02:59]} 8. Bd3 {[%clk 0:02:54]}  Nd7 {[%clk 0:02:59]} 9. f4 {[%clk 0:02:49]}  Qf6 {[%clk 0:02:55]} 10. Ne2 {[%clk 0:02:15]}  Qe7 {[%clk 0:02:55]} 11. h5 {[%clk 0:02:04]}  exf4 {[%clk 0:02:48]} 12. hxg6 {[%clk 0:02:03]}  fxg6 {[%clk 0:02:49]} 13. Nxf4 {[%clk 0:01:48]}  Ne5 {[%clk 0:02:49]} 14. O-O {[%clk 0:01:41]}  Nf6 {[%clk 0:02:47]} 15. Rb1 {[%clk 0:01:36]}  Nfg4 {[%clk 0:02:45]} 16. g3 {[%clk 0:01:26]}  h5 {[%clk 0:02:42]} 17. Be2 {[%clk 0:01:23]}  h4 {[%clk 0:02:30]} 18. Qe1 {[%clk 0:01:10]}  h3 {[%clk 0:01:53]} 19. Kh1 {[%clk 0:01:00]}  Kd8 {[%clk 0:01:48]} 20. Bd1 {[%clk 0:00:40]}  Kc7 {[%clk 0:01:46]} 21. Qe2 {[%clk 0:00:33]}  g5 {[%clk 0:01:44]} 22. Ne6+ {[%clk 0:00:26]}  Bxe6 {[%clk 0:01:44]} 23. dxe6 {[%clk 0:00:27]}  Rhf8 {[%clk 0:01:33]} 24. Rf5 {[%clk 0:00:21]}  Qxe6 {[%clk 0:01:27]} 25. Bc2 {[%clk 0:00:14]}  Qxc4 {[%clk 0:01:06]} 26. Qxc4 {[%clk 0:00:12]}  Nxc4 {[%clk 0:01:07]} 27. Bxg5 {[%clk 0:00:06]}  Nce3 {[%clk 0:01:06]} 28. Bxe3 {[%clk 0:00:02]}  Nxe3 {[%clk 0:01:07]} 29. Rxf8 {[%clk 0:00:02]}  Rxf8 {[%clk 0:01:08]} 30. Bb3 {[%clk 0:00:03]}  c4 {[%clk 0:01:06]} 31. Ba4 {[%clk 0:00:03]}  Rf2 {[%clk 0:01:04]} 32. Re1 {[%clk 0:00:03]}  Ng4 {[%clk 0:01:04]} 33. Bd1 {[%clk 0:00:02]}  Rh2+ {[%clk 0:01:04]} 34. Kg1 {[%clk 0:00:03]}  Rg2+ {[%clk 0:01:05]} 35. Kh1 {[%clk 0:00:03]}  Nf2# {[%clk 0:01:05]} 0-1


[Site "https://www.chess.com"]

[Event "Titled Tuesday Blitz June 27 Late 2023"]
[White "Santos Ruiz, Miguel"]
[Black "Sanal, Vahap"]
[WhiteFideId "22291482"]
[BlackFideId "6300545"]
[WhiteElo "2778"]
[BlackElo "2972"]
[Result "0-1"]
[Round "7"]
[TimeControl "180+2"]
[Date "2023.06.27"]
[WhiteClock "0:00:00"]
[BlackClock "0:01:22"]
[Board "20"]

1. e4 {[%clk 0:03:00]}  d6 {[%clk 0:02:57]} 2. d4 {[%clk 0:03:00]}  Nf6 {[%clk 0:02:56]} 3. Nc3 {[%clk 0:02:55]}  e5 {[%clk 0:02:56]} 4. Nge2 {[%clk 0:02:55]}  Nbd7 {[%clk 0:02:55]} 5. h3 {[%clk 0:02:55]}  g6 {[%clk 0:02:53]} 6. Be3 {[%clk 0:02:54]}  Bg7 {[%clk 0:02:54]} 7. Qd2 {[%clk 0:02:53]}  c6 {[%clk 0:02:53]} 8. a4 {[%clk 0:02:48]}  O-O {[%clk 0:02:51]} 9. g4 {[%clk 0:02:27]}  exd4 {[%clk 0:02:51]} 10. Nxd4 {[%clk 0:02:27]}  Nc5 {[%clk 0:02:49]} 11. f3 {[%clk 0:02:24]}  Re8 {[%clk 0:02:33]} 12. O-O-O {[%clk 0:02:20]}  Qa5 {[%clk 0:02:32]} 13. b3 {[%clk 0:01:43]}  d5 {[%clk 0:02:23]} 14. exd5 {[%clk 0:01:39]}  Qb4 {[%clk 0:02:17]} 15. Kb1 {[%clk 0:01:28]}  Bd7 {[%clk 0:02:05]} 16. dxc6 {[%clk 0:01:12]}  bxc6 {[%clk 0:02:02]} 17. Ne4 {[%clk 0:01:12]}  Qxd2 {[%clk 0:01:59]} 18. Nxf6+ {[%clk 0:00:46]}  Bxf6 {[%clk 0:01:58]} 19. Bxd2 {[%clk 0:00:43]}  Bxd4 {[%clk 0:01:58]} 20. Bb4 {[%clk 0:00:42]}  Ne6 {[%clk 0:01:47]} 21. c3 {[%clk 0:00:42]}  Rab8 {[%clk 0:01:43]} 22. Ba5 {[%clk 0:00:30]}  Rxb3+ {[%clk 0:01:21]} 23. Kc2 {[%clk 0:00:28]}  Reb8 {[%clk 0:01:21]} 24. cxd4 {[%clk 0:00:20]}  c5 {[%clk 0:01:21]} 25. Bb5 {[%clk 0:00:08]}  Bxb5 {[%clk 0:01:21]} 26. Kxb3 {[%clk 0:00:00]}  Be2+ {[%clk 0:01:22]} 0-1


[Site "https://www.chess.com"]

[Event "Titled Tuesday Blitz June 27 Late 2023"]
[White "Cuenca Jimenez, Jose Fernando"]
[Black "Antipov, Mikhail Al."]
[WhiteFideId "2255570"]
[BlackFideId "4107012"]
[WhiteElo "2694"]
[BlackElo "2913"]
[Result "0-1"]
[Round "7"]
[TimeControl "180+2"]
[Date "2023.06.27"]
[WhiteClock "0:00:10"]
[BlackClock "0:00:11"]
[Board "21"]

1. c4 {[%clk 0:01:31]}  c5 {[%clk 0:02:56]} 2. Nf3 {[%clk 0:01:30]}  g6 {[%clk 0:02:55]} 3. d4 {[%clk 0:01:30]}  cxd4 {[%clk 0:02:56]} 4. Nxd4 {[%clk 0:01:31]}  Nc6 {[%clk 0:02:57]} 5. e4 {[%clk 0:01:31]}  Nf6 {[%clk 0:02:56]} 6. Nc3 {[%clk 0:01:31]}  d6 {[%clk 0:02:56]} 7. Be2 {[%clk 0:01:30]}  Nxd4 {[%clk 0:02:57]} 8. Qxd4 {[%clk 0:01:31]}  Bg7 {[%clk 0:02:57]} 9. Be3 {[%clk 0:01:32]}  O-O {[%clk 0:02:58]} 10. Qd3 {[%clk 0:01:32]}  a5 {[%clk 0:02:59]} 11. Bd4 {[%clk 0:01:33]}  a4 {[%clk 0:02:54]} 12. O-O {[%clk 0:01:33]}  Bd7 {[%clk 0:02:52]} 13. f4 {[%clk 0:01:32]}  Bc6 {[%clk 0:02:53]} 14. Rad1 {[%clk 0:01:29]}  Qa5 {[%clk 0:02:50]} 15. Kh1 {[%clk 0:01:16]}  Rae8 {[%clk 0:02:36]} 16. Qe3 {[%clk 0:01:16]}  Nd7 {[%clk 0:02:07]} 17. Bxg7 {[%clk 0:01:16]}  Kxg7 {[%clk 0:02:08]} 18. Qd4+ {[%clk 0:01:07]}  f6 {[%clk 0:02:06]} 19. Nd5 {[%clk 0:01:03]}  Nc5 {[%clk 0:01:56]} 20. e5 {[%clk 0:01:00]}  dxe5 {[%clk 0:01:48]} 21. fxe5 {[%clk 0:01:00]}  f5 {[%clk 0:01:42]} 22. Bf3 {[%clk 0:00:40]}  Ne6 {[%clk 0:01:31]} 23. Qh4 {[%clk 0:00:38]}  Qc5 {[%clk 0:01:30]} 24. b3 {[%clk 0:00:36]}  axb3 {[%clk 0:01:18]} 25. axb3 {[%clk 0:00:37]}  Bxd5 {[%clk 0:00:46]} 26. cxd5 {[%clk 0:00:34]}  Nd8 {[%clk 0:00:43]} 27. Rc1 {[%clk 0:00:32]}  Qb6 {[%clk 0:00:37]} 28. e6 {[%clk 0:00:32]}  f4 {[%clk 0:00:32]} 29. Qg5 {[%clk 0:00:29]}  Qd6 {[%clk 0:00:27]} 30. Be4 {[%clk 0:00:28]}  Rf6 {[%clk 0:00:19]} 31. Rf3 {[%clk 0:00:28]}  b6 {[%clk 0:00:13]} 32. Rh3 {[%clk 0:00:28]}  Rh8 {[%clk 0:00:06]} 33. Qh6+ {[%clk 0:00:26]}  Kg8 {[%clk 0:00:06]} 34. Rc8 {[%clk 0:00:23]}  b5 {[%clk 0:00:04]} 35. Rhc3 {[%clk 0:00:20]}  Qb6 {[%clk 0:00:02]} 36. b4 {[%clk 0:00:13]}  Rf8 {[%clk 0:00:02]} 37. h3 {[%clk 0:00:06]}  Qd4 {[%clk 0:00:01]} 38. Bf3 {[%clk 0:00:04]}  Qg7 {[%clk 0:00:01]} 39. Qg5 {[%clk 0:00:04]}  Qf6 {[%clk 0:00:01]} 40. Qg4 {[%clk 0:00:04]}  Kg7 {[%clk 0:00:02]} 41. h4 {[%clk 0:00:04]}  Nb7 {[%clk 0:00:02]} 42. R8c7 {[%clk 0:00:03]}  Nd6 {[%clk 0:00:02]} 43. Qg5 {[%clk 0:00:04]}  Re8 {[%clk 0:00:01]} 44. Rxe7+ {[%clk 0:00:04]}  Rxe7 {[%clk 0:00:01]} 45. Qg4 {[%clk 0:00:04]}  h5 {[%clk 0:00:01]} 46. Qh3 {[%clk 0:00:04]}  Qxc3 {[%clk 0:00:01]} 47. Qh2 {[%clk 0:00:02]}  Qe1+ {[%clk 0:00:01]} 48. Qg1 {[%clk 0:00:03]}  Qxg1+ {[%clk 0:00:02]} 49. Kxg1 {[%clk 0:00:04]}  Rc8 {[%clk 0:00:03]} 50. Kf2 {[%clk 0:00:05]}  Rc4 {[%clk 0:00:03]} 51. Kg1 {[%clk 0:00:06]}  Rxb4 {[%clk 0:00:04]} 52. Kh2 {[%clk 0:00:07]}  Rd4 {[%clk 0:00:05]} 53. Bxh5 {[%clk 0:00:07]}  b4 {[%clk 0:00:06]} 54. Bxg6 {[%clk 0:00:08]}  Kxg6 {[%clk 0:00:06]} 55. h5+ {[%clk 0:00:08]}  Kf6 {[%clk 0:00:07]} 56. h6 {[%clk 0:00:08]}  b3 {[%clk 0:00:08]} 57. h7 {[%clk 0:00:09]}  Rxh7+ {[%clk 0:00:08]} 58. Kg1 {[%clk 0:00:09]}  b2 {[%clk 0:00:09]} 59. Kf2 {[%clk 0:00:10]}  b1=Q {[%clk 0:00:10]} 60. Ke2 {[%clk 0:00:11]}  Qc2+ {[%clk 0:00:10]} 61. Kf3 {[%clk 0:00:12]}  Rd3+ {[%clk 0:00:11]} 62. Kg4 {[%clk 0:00:10]}  Qf2 {[%clk 0:00:11]} 0-1


[Site "https://www.chess.com"]

[Event "Titled Tuesday Blitz June 27 Late 2023"]
[White "Dardha, Daniel"]
[Black "Rangel, Daniel"]
[WhiteFideId "240990"]
[BlackFideId "2124475"]
[WhiteElo "2899"]
[BlackElo "2468"]
[Result "1-0"]
[Round "7"]
[TimeControl "180+2"]
[Date "2023.06.27"]
[WhiteClock "0:00:37"]
[BlackClock "0:00:47"]
[Board "22"]

1. e4 {[%clk 0:02:58]}  c5 {[%clk 0:02:55]} 2. Nf3 {[%clk 0:02:57]}  g6 {[%clk 0:02:56]} 3. d4 {[%clk 0:02:55]}  cxd4 {[%clk 0:02:55]} 4. Nxd4 {[%clk 0:02:54]}  Bg7 {[%clk 0:02:56]} 5. c4 {[%clk 0:02:54]}  Nc6 {[%clk 0:02:55]} 6. Be3 {[%clk 0:02:39]}  Nf6 {[%clk 0:02:43]} 7. Nc3 {[%clk 0:02:39]}  O-O {[%clk 0:02:40]} 8. Be2 {[%clk 0:02:38]}  Nxd4 {[%clk 0:02:40]} 9. Bxd4 {[%clk 0:02:27]}  d6 {[%clk 0:02:41]} 10. O-O {[%clk 0:02:24]}  Bd7 {[%clk 0:02:37]} 11. Re1 {[%clk 0:02:24]}  Bc6 {[%clk 0:02:37]} 12. Qc2 {[%clk 0:02:24]}  Nd7 {[%clk 0:02:35]} 13. Bxg7 {[%clk 0:02:22]}  Kxg7 {[%clk 0:02:35]} 14. Rad1 {[%clk 0:02:23]}  Qc7 {[%clk 0:02:33]} 15. b3 {[%clk 0:02:11]}  a5 {[%clk 0:02:29]} 16. Qd2 {[%clk 0:02:07]}  b6 {[%clk 0:02:24]} 17. Bf1 {[%clk 0:01:47]}  Nc5 {[%clk 0:01:56]} 18. Nd5 {[%clk 0:01:43]}  Bxd5 {[%clk 0:01:55]} 19. exd5 {[%clk 0:01:43]}  Rfe8 {[%clk 0:01:50]} 20. h4 {[%clk 0:01:39]}  Rad8 {[%clk 0:01:41]} 21. h5 {[%clk 0:01:39]}  e5 {[%clk 0:01:38]} 22. dxe6 {[%clk 0:01:37]}  Rxe6 {[%clk 0:01:36]} 23. h6+ {[%clk 0:01:36]}  Kg8 {[%clk 0:01:32]} 24. Qd4 {[%clk 0:01:35]}  f5 {[%clk 0:01:22]} 25. g3 {[%clk 0:01:21]}  Ne4 {[%clk 0:01:07]} 26. Bg2 {[%clk 0:00:51]}  Re7 {[%clk 0:01:05]} 27. Bxe4 {[%clk 0:00:49]}  fxe4 {[%clk 0:01:04]} 28. Rxe4 {[%clk 0:00:50]}  Rf7 {[%clk 0:01:03]} 29. Rde1 {[%clk 0:00:48]}  Rdf8 {[%clk 0:01:02]} 30. Qd5 {[%clk 0:00:46]}  Qd8 {[%clk 0:00:55]} 31. Re7 {[%clk 0:00:44]}  Qc8 {[%clk 0:00:46]} 32. Rxf7 {[%clk 0:00:42]}  Rxf7 {[%clk 0:00:47]} 33. Re7 {[%clk 0:00:39]}  Qf5 {[%clk 0:00:47]} 34. Re8# {[%clk 0:00:37]} 1-0


[Site "https://www.chess.com"]

[Event "Titled Tuesday Blitz June 27 Late 2023"]
[White "Nihal Sarin"]
[Black "JackRodgers"]
[WhiteFideId "25092340"]
[WhiteElo "3101"]
[BlackElo "2569"]
[Result "1-0"]
[Round "7"]
[TimeControl "180+2"]
[Date "2023.06.27"]
[WhiteClock "0:00:25"]
[BlackClock "0:00:13"]
[Board "23"]

1. Nf3 {[%clk 0:03:00]}  c5 {[%clk 0:02:59]} 2. e3 {[%clk 0:03:01]}  g6 {[%clk 0:02:59]} 3. d4 {[%clk 0:03:01]}  Bg7 {[%clk 0:03:00]} 4. Be2 {[%clk 0:02:59]}  Nf6 {[%clk 0:02:56]} 5. O-O {[%clk 0:02:59]}  cxd4 {[%clk 0:02:56]} 6. exd4 {[%clk 0:03:00]}  d6 {[%clk 0:02:54]} 7. h3 {[%clk 0:02:59]}  O-O {[%clk 0:02:54]} 8. c3 {[%clk 0:02:58]}  a6 {[%clk 0:02:54]} 9. a4 {[%clk 0:02:57]}  b6 {[%clk 0:02:52]} 10. Re1 {[%clk 0:02:58]}  Bb7 {[%clk 0:02:52]} 11. Bg5 {[%clk 0:02:58]}  Nbd7 {[%clk 0:02:46]} 12. Nbd2 {[%clk 0:02:57]}  h6 {[%clk 0:02:43]} 13. Bh4 {[%clk 0:02:57]}  g5 {[%clk 0:02:44]} 14. Bg3 {[%clk 0:02:57]}  Re8 {[%clk 0:02:44]} 15. Nc4 {[%clk 0:02:56]}  Qc7 {[%clk 0:02:35]} 16. Ne3 {[%clk 0:02:56]}  Ne4 {[%clk 0:02:33]} 17. Bh2 {[%clk 0:02:56]}  e6 {[%clk 0:02:31]} 18. h4 {[%clk 0:02:56]}  Ndf6 {[%clk 0:02:22]} 19. hxg5 {[%clk 0:02:55]}  Nxg5 {[%clk 0:02:21]} 20. Bf4 {[%clk 0:02:50]}  Nfe4 {[%clk 0:02:17]} 21. Nxg5 {[%clk 0:02:40]}  hxg5 {[%clk 0:02:17]} 22. Bh2 {[%clk 0:02:41]}  Rad8 {[%clk 0:02:09]} 23. Bd3 {[%clk 0:02:39]}  f5 {[%clk 0:02:01]} 24. Qh5 {[%clk 0:02:37]}  Qf7 {[%clk 0:02:01]} 25. Qxf7+ {[%clk 0:02:36]}  Kxf7 {[%clk 0:02:02]} 26. f3 {[%clk 0:02:36]}  Nf6 {[%clk 0:01:59]} 27. Nc4 {[%clk 0:02:36]}  f4 {[%clk 0:01:46]} 28. Nxb6 {[%clk 0:02:34]}  Rh8 {[%clk 0:01:38]} 29. Re2 {[%clk 0:02:12]}  Rh6 {[%clk 0:01:31]} 30. Nc4 {[%clk 0:02:09]}  Bd5 {[%clk 0:01:27]} 31. Rf1 {[%clk 0:02:09]}  Rdh8 {[%clk 0:01:19]} 32. Nxd6+ {[%clk 0:02:08]}  Kf8 {[%clk 0:01:16]} 33. g4 {[%clk 0:02:03]}  fxg3 {[%clk 0:01:11]} 34. Bxg3 {[%clk 0:02:02]}  g4 {[%clk 0:01:05]} 35. Ne4 {[%clk 0:01:21]}  Rh1+ {[%clk 0:00:58]} 36. Kg2 {[%clk 0:01:21]}  Rxf1 {[%clk 0:00:58]} 37. Kxf1 {[%clk 0:01:22]}  gxf3 {[%clk 0:00:59]} 38. Bd6+ {[%clk 0:01:23]}  Ke8 {[%clk 0:00:54]} 39. Nxf6+ {[%clk 0:01:22]}  Bxf6 {[%clk 0:00:55]} 40. Rh2 {[%clk 0:01:23]}  Rg8 {[%clk 0:00:46]} 41. Bxa6 {[%clk 0:01:07]}  Bg5 {[%clk 0:00:46]} 42. Bb5+ {[%clk 0:00:55]}  Kf7 {[%clk 0:00:41]} 43. Rh7+ {[%clk 0:00:55]}  Kf6 {[%clk 0:00:39]} 44. Be7+ {[%clk 0:00:48]}  Kf5 {[%clk 0:00:39]} 45. Rh5 {[%clk 0:00:49]}  Kf4 {[%clk 0:00:33]} 46. Rxg5 {[%clk 0:00:46]}  Rh8 {[%clk 0:00:31]} 47. Rg1 {[%clk 0:00:30]}  Rh7 {[%clk 0:00:19]} 48. Bg5+ {[%clk 0:00:29]}  Ke4 {[%clk 0:00:20]} 49. Rg4+ {[%clk 0:00:19]}  Kf5 {[%clk 0:00:19]} 50. Bd3+ {[%clk 0:00:20]}  Kxg4 {[%clk 0:00:16]} 51. Bxh7 {[%clk 0:00:20]}  Kxg5 {[%clk 0:00:16]} 52. Kf2 {[%clk 0:00:21]}  Kf4 {[%clk 0:00:16]} 53. a5 {[%clk 0:00:21]}  Bc4 {[%clk 0:00:15]} 54. Bc2 {[%clk 0:00:20]}  e5 {[%clk 0:00:13]} 55. dxe5 {[%clk 0:00:19]}  Kxe5 {[%clk 0:00:14]} 56. Kxf3 {[%clk 0:00:20]}  Kd6 {[%clk 0:00:11]} 57. Ke3 {[%clk 0:00:20]}  Kc5 {[%clk 0:00:11]} 58. b4+ {[%clk 0:00:20]}  Kc6 {[%clk 0:00:10]} 59. Kd4 {[%clk 0:00:21]}  Be6 {[%clk 0:00:10]} 60. c4 {[%clk 0:00:21]}  Kb7 {[%clk 0:00:09]} 61. Be4+ {[%clk 0:00:21]}  Ka7 {[%clk 0:00:10]} 62. b5 {[%clk 0:00:21]}  Bc8 {[%clk 0:00:11]} 63. Kc5 {[%clk 0:00:22]}  Kb8 {[%clk 0:00:11]} 64. Kb4 {[%clk 0:00:22]}  Ka7 {[%clk 0:00:11]} 65. c5 {[%clk 0:00:23]}  Kb8 {[%clk 0:00:12]} 66. c6 {[%clk 0:00:24]}  Ka7 {[%clk 0:00:12]} 67. b6+ {[%clk 0:00:24]}  Kb8 {[%clk 0:00:13]} 68. c7# {[%clk 0:00:25]} 1-0


[Site "https://www.chess.com"]

[Event "Titled Tuesday Blitz June 27 Late 2023"]
[White "Rosen, Eric"]
[Black "He, Anthony"]
[WhiteFideId "2032562"]
[BlackFideId "2088215"]
[WhiteElo "2677"]
[BlackElo "2984"]
[Result "1/2-1/2"]
[Round "7"]
[TimeControl "180+2"]
[Date "2023.06.27"]
[WhiteClock "0:00:03"]
[BlackClock "0:00:35"]
[Board "24"]

1. d4 {[%clk 0:02:54]}  Nf6 {[%clk 0:02:59]} 2. Bf4 {[%clk 0:02:54]}  d5 {[%clk 0:02:59]} 3. e3 {[%clk 0:02:51]}  c5 {[%clk 0:02:59]} 4. Nf3 {[%clk 0:02:50]}  Nc6 {[%clk 0:02:59]} 5. Nbd2 {[%clk 0:02:50]}  cxd4 {[%clk 0:03:00]} 6. exd4 {[%clk 0:02:51]}  Bf5 {[%clk 0:03:00]} 7. c3 {[%clk 0:02:50]}  e6 {[%clk 0:02:58]} 8. Be2 {[%clk 0:02:50]}  Bd6 {[%clk 0:02:57]} 9. Bxd6 {[%clk 0:02:51]}  Qxd6 {[%clk 0:02:58]} 10. O-O {[%clk 0:02:52]}  O-O {[%clk 0:02:58]} 11. Re1 {[%clk 0:02:47]}  h6 {[%clk 0:02:58]} 12. a4 {[%clk 0:02:47]}  a6 {[%clk 0:02:57]} 13. a5 {[%clk 0:02:43]}  Rab8 {[%clk 0:02:57]} 14. Bf1 {[%clk 0:02:34]}  Bh7 {[%clk 0:02:55]} 15. b4 {[%clk 0:02:34]}  Nd7 {[%clk 0:02:52]} 16. Nb3 {[%clk 0:02:32]}  e5 {[%clk 0:02:50]} 17. dxe5 {[%clk 0:02:28]}  Ndxe5 {[%clk 0:02:51]} 18. Nfd4 {[%clk 0:02:13]}  Rfe8 {[%clk 0:02:50]} 19. Nc5 {[%clk 0:02:13]}  Bg6 {[%clk 0:02:40]} 20. Re3 {[%clk 0:02:05]}  Re7 {[%clk 0:02:37]} 21. h3 {[%clk 0:01:51]}  Rbe8 {[%clk 0:02:34]} 22. Qb3 {[%clk 0:01:46]}  Nxd4 {[%clk 0:02:32]} 23. cxd4 {[%clk 0:01:46]}  Nc6 {[%clk 0:02:33]} 24. Nxb7 {[%clk 0:01:27]}  Qf4 {[%clk 0:02:20]} 25. Rxe7 {[%clk 0:01:18]}  Rxe7 {[%clk 0:02:20]} 26. Nc5 {[%clk 0:01:18]}  Qxd4 {[%clk 0:02:11]} 27. Rd1 {[%clk 0:01:15]}  Qxb4 {[%clk 0:02:10]} 28. Qxd5 {[%clk 0:01:11]}  Re5 {[%clk 0:01:53]} 29. Qxc6 {[%clk 0:00:55]}  Qxc5 {[%clk 0:01:48]} 30. Qxa6 {[%clk 0:00:36]}  Qxa5 {[%clk 0:01:47]} 31. Qc8+ {[%clk 0:00:32]}  Kh7 {[%clk 0:01:47]} 32. Rd8 {[%clk 0:00:32]}  Bf5 {[%clk 0:01:45]} 33. Rh8+ {[%clk 0:00:32]}  Kg6 {[%clk 0:01:45]} 34. Qc6+ {[%clk 0:00:24]}  Re6 {[%clk 0:01:44]} 35. Qf3 {[%clk 0:00:20]}  Qe5 {[%clk 0:01:44]} 36. g4 {[%clk 0:00:15]}  Be4 {[%clk 0:01:43]} 37. Bd3 {[%clk 0:00:14]}  Bxd3 {[%clk 0:01:16]} 38. Qxd3+ {[%clk 0:00:15]}  Kg5 {[%clk 0:01:16]} 39. Kg2 {[%clk 0:00:14]}  Qf4 {[%clk 0:01:10]} 40. Rd8 {[%clk 0:00:13]}  Re5 {[%clk 0:01:03]} 41. Rd5 {[%clk 0:00:08]}  Rxd5 {[%clk 0:00:50]} 42. Qxd5+ {[%clk 0:00:08]}  Kg6 {[%clk 0:00:50]} 43. Qd3+ {[%clk 0:00:07]}  Kg5 {[%clk 0:00:49]} 44. Qd5+ {[%clk 0:00:07]}  Kg6 {[%clk 0:00:49]} 45. Qd3+ {[%clk 0:00:07]}  Kf6 {[%clk 0:00:50]} 46. Qd8+ {[%clk 0:00:05]}  Ke6 {[%clk 0:00:48]} 47. Qe8+ {[%clk 0:00:06]}  Kd5 {[%clk 0:00:47]} 48. Qd7+ {[%clk 0:00:05]}  Ke4 {[%clk 0:00:46]} 49. Qc6+ {[%clk 0:00:04]}  Kd3 {[%clk 0:00:46]} 50. Qb5+ {[%clk 0:00:03]}  Kd2 {[%clk 0:00:45]} 51. Qb2+ {[%clk 0:00:02]}  Ke1 {[%clk 0:00:46]} 52. Qb1+ {[%clk 0:00:02]}  Ke2 {[%clk 0:00:46]} 53. Qc2+ {[%clk 0:00:02]}  Ke1 {[%clk 0:00:45]} 54. Qb1+ {[%clk 0:00:02]}  Kd2 {[%clk 0:00:45]} 55. Qb2+ {[%clk 0:00:03]}  Kd3 {[%clk 0:00:46]} 56. Qxg7 {[%clk 0:00:02]}  Qe4+ {[%clk 0:00:45]} 57. Kg1 {[%clk 0:00:02]}  Qe1+ {[%clk 0:00:43]} 58. Kg2 {[%clk 0:00:03]}  Qe4+ {[%clk 0:00:43]} 59. Kg3 {[%clk 0:00:03]}  Qe6 {[%clk 0:00:42]} 60. Qh8 {[%clk 0:00:02]}  Qd6+ {[%clk 0:00:39]} 61. Kg2 {[%clk 0:00:02]}  Qc6+ {[%clk 0:00:39]} 62. Kg3 {[%clk 0:00:02]}  Qd6+ {[%clk 0:00:39]} 63. f4 {[%clk 0:00:03]}  Qb6 {[%clk 0:00:34]} 64. Qe8 {[%clk 0:00:02]}  Qg1+ {[%clk 0:00:32]} 65. Kf3 {[%clk 0:00:02]}  Qf1+ {[%clk 0:00:32]} 66. Kg3 {[%clk 0:00:03]}  Qg1+ {[%clk 0:00:33]} 67. Kh4 {[%clk 0:00:03]}  Qf2+ {[%clk 0:00:33]} 68. Kh5 {[%clk 0:00:04]}  Qxf4 {[%clk 0:00:34]} 69. Qd7+ {[%clk 0:00:04]}  Ke4 {[%clk 0:00:33]} 70. Qa4+ {[%clk 0:00:04]}  Kf3 {[%clk 0:00:32]} 71. Qxf4+ {[%clk 0:00:04]}  Kxf4 {[%clk 0:00:33]} 72. Kxh6 {[%clk 0:00:05]}  Kg3 {[%clk 0:00:33]} 73. Kg7 {[%clk 0:00:02]}  Kxh3 {[%clk 0:00:33]} 74. g5 {[%clk 0:00:03]}  Kg4 {[%clk 0:00:34]} 75. Kf6 {[%clk 0:00:03]}  Kh5 {[%clk 0:00:34]} 76. Kxf7 {[%clk 0:00:03]}  Kxg5 {[%clk 0:00:35]} 1/2-1/2


[Site "https://www.chess.com"]